[Event "NJSK 2021 Jeugd B"]
[Site "Almelo, Netherlands"]
[Date "2021.08.06"]
[Round "6.2"]
[White "Groen, Jari"]
[Black "Pham, Khoi"]
[Result "0-1"]
[TimeControl "90min/40moves + 30min + 30sec/move"]
[WhiteElo "1423"]
[BlackElo "2128"]

1. e4 {[%clk 01:30:56]} {[%emt 00:00:02]} c5 {[%clk 01:30:57]} {[%emt
00:00:04]} 2. Nf3 {[%clk 01:31:17]} {[%emt 00:00:10]} d6 {[%clk 01:31:23]}
{[%emt 00:00:04]} 3. d4 {[%clk 01:31:39]} {[%emt 00:00:08]} cxd4 {[%clk
01:31:48]} {[%emt 00:00:05]} 4. Nxd4 {[%clk 01:32:01]} {[%emt 00:00:08]} Nf6
{[%clk 01:32:14]} {[%emt 00:00:03]} 5. Nc3 {[%clk 01:32:18]} {[%emt 00:00:13]}
a6 {[%clk 01:32:41]} {[%emt 00:00:04]} 6. Bg5 {[%clk 01:32:16]} {[%emt
00:00:31]} Nbd7 {[%clk 01:32:46]} {[%emt 00:00:25]} 7. f4 {[%clk 01:30:20]}
{[%emt 00:02:25]} Qc7 {[%clk 01:32:43]} {[%emt 00:00:34]} 8. Qf3 {[%clk
01:26:44]} {[%emt 00:04:07]} h6 {[%clk 01:33:06]} {[%emt 00:00:06]} 9. Bxf6
{[%clk 01:22:13]} {[%emt 00:05:01]} Nxf6 {[%clk 01:33:30]} {[%emt 00:00:06]} 10.
f5 {[%clk 01:21:16]} {[%emt 00:01:27]} Qc5 {[%clk 01:33:37]} {[%emt 00:00:23]}
11. O-O-O {[%clk 01:19:51]} {[%emt 00:01:55]} g5 {[%clk 01:34:02]} {[%emt
00:00:05]} 12. e5 {[%clk 01:12:48]} {[%emt 00:07:34]} Qxe5 {[%clk 01:30:31]}
{[%emt 00:04:01]} 13. g3 {[%clk 01:11:22]} {[%emt 00:01:55]} g4 {[%clk
01:27:30]} {[%emt 00:03:30]} 14. Qf2 {[%clk 01:11:34]} {[%emt 00:00:19]} h5
{[%clk 01:21:24]} {[%emt 00:06:37]} 15. Re1 {[%clk 01:06:05]} {[%emt 00:05:59]}
Qc5 {[%clk 01:17:10]} {[%emt 00:04:43]} 16. Bg2 {[%clk 01:01:49]} {[%emt
00:04:46]} Bg7 {[%clk 01:12:50]} {[%emt 00:04:50]} 17. Rd1 {[%clk 00:54:16]}
{[%emt 00:08:03]} O-O {[%clk 01:11:09]} {[%emt 00:02:10]} 18. Rhe1 {[%clk
00:53:17]} {[%emt 00:01:28]} Re8 {[%clk 01:01:38]} {[%emt 00:10:02]} 19. Kb1
{[%clk 00:45:06]} {[%emt 00:08:41]} Bd7 {[%clk 00:58:48]} {[%emt 00:03:20]} 20.
Bxb7 {[%clk 00:37:28]} {[%emt 00:08:08]} Rab8 {[%clk 00:58:27]} {[%emt
00:00:51]} 21. Qg2 {[%clk 00:32:33]} {[%emt 00:05:24]} Qb6 {[%clk 00:57:34]}
{[%emt 00:01:23]} 22. Nc6 {[%clk 00:30:28]} {[%emt 00:02:36]} Rxb7 {[%clk
00:57:32]} {[%emt 00:00:32]} 0-1

[Event "NJSK 2021 Jeugd B"]
[Site "Almelo, Netherlands"]
[Date "2021.08.06"]
[Round "6.3"]
[White "Achuthan, Dylan"]
[Black "Van Kuijk, Vadim"]
[Result "1-0"]
[TimeControl "90min/40moves + 30min + 30sec/move"]
[WhiteElo "1888"]
[BlackElo "1722"]

1. e4 {[%clk 01:30:36]} {[%emt 00:00:23]} c6 {[%clk 01:30:46]} {[%emt
00:00:08]} 2. d4 {[%clk 01:30:14]} {[%emt 00:00:58]} d5 {[%clk 01:31:10]}
{[%emt 00:00:07]} 3. e5 {[%clk 01:30:08]} {[%emt 00:00:36]} Bf5 {[%clk
01:30:10]} {[%emt 00:01:30]} 4. h4 {[%clk 01:29:37]} {[%emt 00:01:00]} h5
{[%clk 01:28:38]} {[%emt 00:02:02]} 5. Bg5 {[%clk 01:26:18]} {[%emt 00:03:49]}
Qb6 {[%clk 01:20:14]} {[%emt 00:08:55]} 6. Bd3 {[%clk 01:20:35]} {[%emt
00:06:12]} Bxd3 {[%clk 01:17:24]} {[%emt 00:03:20]} 7. Qxd3 {[%clk 01:20:26]}
{[%emt 00:00:39]} e6 {[%clk 01:13:01]} {[%emt 00:04:53]} 8. Nd2 {[%clk
01:19:24]} {[%emt 00:01:32]} Nd7 {[%clk 01:02:44]} {[%emt 00:10:48]} 9. Ngf3
{[%clk 01:17:01]} {[%emt 00:02:52]} c5 {[%clk 00:50:25]} {[%emt 00:12:49]} 10.
c4 {[%clk 01:11:33]} {[%emt 00:05:59]} Ne7 {[%clk 00:46:01]} {[%emt 00:04:53]}
11. Bxe7 {[%clk 00:59:01]} {[%emt 00:13:02]} Bxe7 {[%clk 00:44:55]} {[%emt
00:01:36]} 12. cxd5 {[%clk 00:50:22]} {[%emt 00:09:08]} exd5 {[%clk 00:45:01]}
{[%emt 00:00:24]} 13. O-O {[%clk 00:46:30]} {[%emt 00:04:22]} c4 {[%clk
00:38:08]} {[%emt 00:07:23]} 14. Qe3 {[%clk 00:39:08]} {[%emt 00:07:52]} O-O
{[%clk 00:23:19]} {[%emt 00:15:19]} 15. Rfe1 {[%clk 00:31:19]} {[%emt
00:08:19]} Rac8 {[%clk 00:19:23]} {[%emt 00:04:26]} 16. Rab1 {[%clk 00:26:36]}
{[%emt 00:05:13]} a5 {[%clk 00:10:46]} {[%emt 00:09:08]} 17. Nf1 {[%clk
00:24:23]} {[%emt 00:02:43]} Rc6 {[%clk 00:04:42]} {[%emt 00:06:34]} 18. Ng3
{[%clk 00:22:37]} {[%emt 00:02:16]} Re8 {[%clk 00:04:45]} {[%emt 00:00:27]} 19.
Nxh5 {[%clk 00:21:44]} {[%emt 00:01:22]} Rh6 {[%clk 00:05:00]} {[%emt
00:00:15]} 20. Nf4 {[%clk 00:21:06]} {[%emt 00:01:09]} Qc6 {[%clk 00:04:00]}
{[%emt 00:01:30]} 21. g3 {[%clk 00:15:46]} {[%emt 00:05:49]} b5 {[%clk
00:04:07]} {[%emt 00:00:24]} 22. Ng5 {[%clk 00:11:15]} {[%emt 00:05:00]} Nf8
{[%clk 00:02:25]} {[%emt 00:02:12]} 23. Qf3 {[%clk 00:10:38]} {[%emt 00:01:07]}
Rd8 {[%clk 00:01:19]} {[%emt 00:01:37]} 24. e6 {[%clk 00:03:33]} {[%emt
00:07:35]} fxe6 {[%clk 00:01:30]} {[%emt 00:00:17]} 25. Nfxe6 {[%clk 00:02:21]}
{[%emt 00:01:43]} Bxg5 {[%clk 00:00:51]} {[%emt 00:01:10]} 26. Nxg5 {[%clk
00:02:15]} {[%emt 00:00:36]} Rf6 {[%clk 00:00:49]} {[%emt 00:00:31]} 27. Qg4
{[%clk 00:02:27]} {[%emt 00:00:19]} Qb6 {[%clk 00:00:39]} {[%emt 00:00:41]} 28.
h5 {[%clk 00:01:58]} {[%emt 00:00:59]} Qa7 {[%clk 00:00:37]} {[%emt 00:00:31]}
29. Re5 {[%clk 00:01:56]} {[%emt 00:00:32]} Nh7 {[%clk 00:00:50]} {[%emt
00:00:17]} 30. Ne6 {[%clk 00:01:24]} {[%emt 00:01:02]} Rd7 {[%clk 00:00:52]}
{[%emt 00:00:28]} 31. Rbe1 {[%clk 00:01:36]} {[%emt 00:00:19]} Rdf7 {[%clk
00:00:57]} {[%emt 00:00:25]} 32. R1e2 {[%clk 00:01:40]} {[%emt 00:00:26]} Qd7
{[%clk 00:01:16]} {[%emt 00:00:10]} 33. f4 {[%clk 00:01:14]} {[%emt 00:00:56]}
Re7 {[%clk 00:01:17]} {[%emt 00:00:29]} 34. f5 {[%clk 00:01:28]} {[%emt
00:00:16]} Ref7 {[%clk 00:01:17]} {[%emt 00:00:30]} 35. Qf3 {[%clk 00:01:06]}
{[%emt 00:00:52]} Qa7 {[%clk 00:00:54]} {[%emt 00:00:53]} 36. Qxd5 {[%clk
00:00:57]} {[%emt 00:00:39]} Rd7 {[%clk 00:01:18]} {[%emt 00:00:05]} 37. Qc5
{[%clk 00:00:55]} {[%emt 00:00:33]} Qa8 {[%clk 00:00:58]} {[%emt 00:00:50]} 38.
d5 {[%clk 00:00:57]} {[%emt 00:00:28]} Qb8 {[%clk 00:00:51]} {[%emt 00:00:37]}
39. g4 {[%clk 00:00:44]} {[%emt 00:00:43]} 1-0

[Event "NJSK 2021 Jeugd B"]
[Site "Almelo, Netherlands"]
[Date "2021.08.06"]
[Round "6.4"]
[White "Boeren, Jurriaan"]
[Black "Boghossian, Wahe"]
[Result "0-1"]
[TimeControl "90min/40moves + 30min + 30sec/move"]
[WhiteElo "1614"]
[BlackElo "1915"]

1. e4 {[%clk 01:30:57]} {[%emt 00:00:02]} c5 {[%clk 01:30:56]} {[%emt
00:00:04]} 2. Nf3 {[%clk 01:31:21]} {[%emt 00:00:06]} d6 {[%clk 01:31:20]}
{[%emt 00:00:06]} 3. d4 {[%clk 01:31:47]} {[%emt 00:00:05]} cxd4 {[%clk
01:31:46]} {[%emt 00:00:04]} 4. Nxd4 {[%clk 01:32:10]} {[%emt 00:00:07]} Nf6
{[%clk 01:32:11]} {[%emt 00:00:04]} 5. Nc3 {[%clk 01:32:36]} {[%emt 00:00:04]}
g6 {[%clk 01:32:30]} {[%emt 00:00:11]} 6. Be3 {[%clk 01:32:55]} {[%emt
00:00:11]} Bg7 {[%clk 01:32:53]} {[%emt 00:00:07]} 7. f3 {[%clk 01:33:17]}
{[%emt 00:00:08]} O-O {[%clk 01:32:54]} {[%emt 00:00:29]} 8. Qd2 {[%clk
01:33:41]} {[%emt 00:00:06]} Nc6 {[%clk 01:33:17]} {[%emt 00:00:07]} 9. Bc4
{[%clk 01:34:05]} {[%emt 00:00:06]} Bd7 {[%clk 01:33:21]} {[%emt 00:00:26]} 10.
O-O-O {[%clk 01:34:25]} {[%emt 00:00:11]} Rb8 {[%clk 01:31:52]} {[%emt
00:01:59]} 11. Kb1 {[%clk 01:31:23]} {[%emt 00:03:32]} Nxd4 {[%clk 01:31:30]}
{[%emt 00:00:52]} 12. Bxd4 {[%clk 01:31:44]} {[%emt 00:00:09]} b5 {[%clk
01:31:37]} {[%emt 00:00:22]} 13. Bb3 {[%clk 01:31:27]} {[%emt 00:00:47]} a5
{[%clk 01:31:28]} {[%emt 00:00:39]} 14. Nd5 {[%clk 01:23:09]} {[%emt 00:08:49]}
Nxd5 {[%clk 01:20:34]} {[%emt 00:11:23]} 15. Bxg7 {[%clk 01:23:04]} {[%emt
00:00:35]} Kxg7 {[%clk 01:20:11]} {[%emt 00:00:53]} 16. Bxd5 {[%clk 01:23:24]}
{[%emt 00:00:11]} Qb6 {[%clk 00:50:29]} {[%emt 00:30:11]} 17. e5 {[%clk
01:11:38]} {[%emt 00:12:17]} dxe5 {[%clk 00:28:42]} {[%emt 00:22:17]} 18. Bxf7
{[%clk 01:05:34]} {[%emt 00:06:34]} Bf5 {[%clk 00:28:05]} {[%emt 00:01:06]} 19.
Bd5 {[%clk 01:05:02]} {[%emt 00:01:03]} Rbc8 {[%clk 00:27:45]} {[%emt
00:00:49]} 20. Be4 {[%clk 00:58:10]} {[%emt 00:07:23]} Bxe4 {[%clk 00:27:22]}
{[%emt 00:00:53]} 21. fxe4 {[%clk 00:58:35]} {[%emt 00:00:05]} Rf2 {[%clk
00:27:10]} {[%emt 00:00:41]} 22. Qd7 {[%clk 00:47:18]} {[%emt 00:11:48]} Qc5
{[%clk 00:23:46]} {[%emt 00:03:52]} 23. c3 {[%clk 00:40:10]} {[%emt 00:07:39]}
Rxb2+ {[%clk 00:19:44]} {[%emt 00:04:32]} 24. Kxb2 {[%clk 00:39:55]} {[%emt
00:00:46]} Qxc3+ {[%clk 00:19:58]} {[%emt 00:00:15]} 25. Kb1 {[%clk 00:40:21]}
{[%emt 00:00:04]} Qb4+ {[%clk 00:18:36]} {[%emt 00:01:51]} 26. Ka1 {[%clk
00:40:43]} {[%emt 00:00:08]} Rc2 {[%clk 00:17:32]} {[%emt 00:01:32]} 0-1

[Event "NJSK 2021 Jeugd B"]
[Site "Almelo, Netherlands"]
[Date "2021.08.06"]
[Round "6.5"]
[White "Yeh, Timo"]
[Black "Aarts, Joaquin"]
[Result "1/2-1/2"]
[TimeControl "90min/40moves + 30min + 30sec/move"]
[WhiteElo "1819"]
[BlackElo "1736"]

1. c4 {[%clk 01:30:54]} {[%emt 00:00:05]} Nf6 {[%clk 01:30:56]} {[%emt
00:00:05]} 2. Nf3 {[%clk 01:31:18]} {[%emt 00:00:06]} e6 {[%clk 01:31:13]}
{[%emt 00:00:13]} 3. g3 {[%clk 01:31:36]} {[%emt 00:00:12]} b6 {[%clk
01:31:34]} {[%emt 00:00:09]} 4. Bg2 {[%clk 01:32:00]} {[%emt 00:00:05]} Bb7
{[%clk 01:31:59]} {[%emt 00:00:05]} 5. O-O {[%clk 01:32:21]} {[%emt 00:00:09]}
Be7 {[%clk 01:32:18]} {[%emt 00:00:12]} 6. d4 {[%clk 01:32:42]} {[%emt
00:00:09]} c5 {[%clk 01:32:35]} {[%emt 00:00:13]} 7. Nc3 {[%clk 01:32:44]}
{[%emt 00:00:28]} cxd4 {[%clk 01:32:53]} {[%emt 00:00:12]} 8. Nxd4 {[%clk
01:32:59]} {[%emt 00:00:15]} Bxg2 {[%clk 01:33:14]} {[%emt 00:00:10]} 9. Kxg2
{[%clk 01:33:23]} {[%emt 00:00:05]} Qc8 {[%clk 01:33:19]} {[%emt 00:00:25]} 10.
Qd3 {[%clk 01:32:51]} {[%emt 00:01:03]} Nc6 {[%clk 01:33:04]} {[%emt 00:00:45]}
11. Nxc6 {[%clk 01:30:21]} {[%emt 00:03:00]} Qxc6+ {[%clk 01:33:17]} {[%emt
00:00:17]} 12. Kg1 {[%clk 01:30:46]} {[%emt 00:00:05]} a6 {[%clk 01:33:36]}
{[%emt 00:00:11]} 13. b3 {[%clk 01:30:45]} {[%emt 00:00:31]} O-O {[%clk
01:33:34]} {[%emt 00:00:30]} 14. Bb2 {[%clk 01:30:25]} {[%emt 00:00:51]} Rac8
{[%clk 01:31:50]} {[%emt 00:02:14]} 15. Rfd1 {[%clk 01:29:26]} {[%emt
00:01:30]} Rfd8 {[%clk 01:28:23]} {[%emt 00:03:57]} 16. e4 {[%clk 01:27:09]}
{[%emt 00:02:46]} d6 {[%clk 01:25:24]} {[%emt 00:03:29]} 17. Ba3 {[%clk
01:14:21]} {[%emt 00:13:18]} b5 {[%clk 01:13:48]} {[%emt 00:12:07]} 18. Qe3
{[%clk 01:04:26]} {[%emt 00:10:24]} bxc4 {[%clk 00:57:36]} {[%emt 00:16:43]} 19.
bxc4 {[%clk 01:03:38]} {[%emt 00:01:18]} Qxc4 {[%clk 00:57:07]} {[%emt
00:00:59]} 20. Rac1 {[%clk 01:04:03]} {[%emt 00:00:04]} Kf8 {[%clk 00:56:34]}
{[%emt 00:01:03]} 21. e5 {[%clk 00:43:39]} {[%emt 00:20:55]} Ng4 {[%clk
00:36:18]} {[%emt 00:20:46]} 22. exd6 {[%clk 00:42:15]} {[%emt 00:01:54]} Nxe3
{[%clk 00:18:58]} {[%emt 00:17:50]} 23. dxe7+ {[%clk 00:42:40]} {[%emt
00:00:05]} Ke8 {[%clk 00:19:24]} {[%emt 00:00:04]} 24. Rxd8+ {[%clk 00:42:36]}
{[%emt 00:00:33]} Rxd8 {[%clk 00:19:47]} {[%emt 00:00:07]} 25. exd8=Q+ {[%emt
00:00:13]} Kxd8 {[%emt 00:00:03]} 26. fxe3 {[%clk 00:42:43]} {[%emt 00:00:07]}
Qg4 {[%clk 00:19:08]} {[%emt 00:01:08]} 27. Kg2 {[%clk 00:36:24]} {[%emt
00:06:50]} Qg5 {[%clk 00:18:09]} {[%emt 00:01:29]} 28. Rd1+ {[%clk 00:35:00]}
{[%emt 00:01:54]} Ke8 {[%clk 00:18:01]} {[%emt 00:00:37]} 29. Ne4 {[%clk
00:34:24]} {[%emt 00:01:06]} Qg4 {[%clk 00:12:10]} {[%emt 00:06:21]} 30. Nd6+
{[%clk 00:33:13]} {[%emt 00:01:41]} Ke7 {[%clk 00:11:36]} {[%emt 00:01:01]} 31.
Nb7+ {[%clk 00:25:53]} {[%emt 00:07:52]} Kf6 {[%clk 00:11:48]} {[%emt
00:00:19]} 32. Rf1+ {[%clk 00:26:18]} {[%emt 00:00:05]} Kg6 {[%clk 00:11:34]}
{[%emt 00:00:43]} 33. Nd6 {[%clk 00:21:38]} {[%emt 00:05:10]} Qe2+ {[%clk
00:10:10]} {[%emt 00:01:55]} 34. Rf2 {[%clk 00:22:04]} {[%emt 00:00:04]} Qxe3
{[%clk 00:10:18]} {[%emt 00:00:22]} 35. Bb2 {[%clk 00:22:32]} {[%emt 00:00:02]}
f6 {[%clk 00:09:47]} {[%emt 00:01:00]} 36. h4 {[%clk 00:18:15]} {[%emt
00:04:48]} Qc5 {[%clk 00:07:35]} {[%emt 00:02:43]} 37. h5+ {[%clk 00:10:09]}
{[%emt 00:08:35]} Kxh5 {[%clk 00:05:41]} {[%emt 00:02:24]} 38. Nf7 {[%clk
00:10:25]} {[%emt 00:00:14]} Qd5+ {[%clk 00:04:19]} {[%emt 00:01:51]} 39. Kh3
{[%clk 00:06:37]} {[%emt 00:04:19]} Qh1+ {[%clk 00:01:11]} {[%emt 00:03:37]} 40.
Rh2 {[%clk 00:07:02]} {[%emt 00:00:06]} Qf1+ {[%clk 00:01:26]} {[%emt
00:00:15]} 41. Rg2 {[%clk 00:07:26]} {[%emt 00:00:06]} Qh1+ {[%clk 00:00:53]}
{[%emt 00:01:03]} 42. Rh2 {[%clk 00:07:50]} {[%emt 00:00:06]} Qf1+ {[%clk
00:00:53]} {[%emt 00:00:29]} 1/2-1/2

[Event "NJSK 2021 Jeugd B"]
[Site "Almelo, Netherlands"]
[Date "2021.08.06"]
[Round "6.6"]
[White "Shadrin, Mitia"]
[Black "Goudriaan, Rafael"]
[Result "0-1"]
[TimeControl "90min/40moves + 30min + 30sec/move"]
[WhiteElo "1698"]
[BlackElo "1677"]

1. e4 {[%clk 01:30:58]} d5 {[%clk 01:30:57]} {[%emt 00:00:04]} 2. exd5 {[%clk
01:31:25]} {[%emt 00:00:03]} Qxd5 {[%clk 01:31:25]} {[%emt 00:00:02]} 3. Nc3
{[%clk 01:31:47]} {[%emt 00:00:07]} Qa5 {[%clk 01:31:48]} {[%emt 00:00:07]} 4.
d4 {[%clk 01:31:55]} {[%emt 00:00:23]} Nf6 {[%clk 01:32:06]} {[%emt 00:00:11]}
5. Nf3 {[%clk 01:30:58]} {[%emt 00:01:27]} Bg4 {[%clk 01:32:33]} {[%emt
00:00:03]} 6. Bd2 {[%clk 01:28:47]} {[%emt 00:02:40]} c6 {[%clk 01:30:40]}
{[%emt 00:02:23]} 7. Bc4 {[%clk 01:26:39]} {[%emt 00:02:38]} e6 {[%clk
01:28:50]} {[%emt 00:02:22]} 8. O-O {[%clk 01:24:57]} {[%emt 00:02:12]} Qc7
{[%clk 01:26:24]} {[%emt 00:02:54]} 9. Re1 {[%clk 01:23:33]} {[%emt 00:01:54]}
Be7 {[%clk 01:26:14]} {[%emt 00:00:40]} 10. h3 {[%clk 01:23:24]} {[%emt
00:00:41]} Bh5 {[%clk 01:26:41]} {[%emt 00:00:04]} 11. Bb3 {[%clk 01:19:14]}
{[%emt 00:04:31]} O-O {[%clk 01:21:02]} {[%emt 00:06:18]} 12. Bg5 {[%clk
01:18:15]} {[%emt 00:01:24]} Rd8 {[%clk 01:18:54]} {[%emt 00:02:42]} 13. g4
{[%clk 01:14:44]} {[%emt 00:04:01]} Bg6 {[%clk 01:18:06]} {[%emt 00:01:18]} 14.
Ne5 {[%clk 01:13:58]} {[%emt 00:01:17]} Nbd7 {[%clk 01:09:19]} {[%emt
00:09:10]} 15. Nxg6 {[%clk 01:12:54]} {[%emt 00:01:40]} hxg6 {[%clk 01:09:37]}
{[%emt 00:00:12]} 16. Qf3 {[%clk 01:12:55]} {[%emt 00:00:27]} c5 {[%clk
01:04:02]} {[%emt 00:06:08]} 17. dxc5 {[%clk 01:10:43]} {[%emt 00:02:42]} Nxc5
{[%clk 01:01:49]} {[%emt 00:02:44]} 18. Bf4 {[%clk 01:06:43]} {[%emt 00:04:27]}
Qb6 {[%clk 00:59:54]} {[%emt 00:02:19]} 19. Be3 {[%clk 01:05:13]} {[%emt
00:02:08]} Qc7 {[%clk 00:58:08]} {[%emt 00:02:16]} 20. Nb5 {[%clk 00:58:14]}
{[%emt 00:07:29]} Qa5 {[%clk 00:54:26]} {[%emt 00:04:12]} 21. Nd4 {[%clk
00:56:46]} {[%emt 00:01:53]} e5 {[%clk 00:49:47]} {[%emt 00:05:14]} 22. Ne2
{[%clk 00:50:42]} {[%emt 00:06:31]} e4 {[%clk 00:47:57]} {[%emt 00:02:23]} 23.
Qg2 {[%clk 00:50:19]} {[%emt 00:00:52]} Nxb3 {[%clk 00:45:04]} {[%emt
00:03:23]} 24. axb3 {[%clk 00:50:35]} {[%emt 00:00:14]} Qe5 {[%clk 00:44:34]}
{[%emt 00:01:00]} 25. Nc3 {[%clk 00:49:43]} {[%emt 00:01:22]} Bb4 {[%clk
00:41:13]} {[%emt 00:03:48]} 26. Rxa7 {[%clk 00:43:35]} {[%emt 00:06:41]} Bxc3
{[%clk 00:40:58]} {[%emt 00:00:45]} 27. Rxa8 {[%clk 00:42:25]} {[%emt
00:01:41]} Rxa8 {[%clk 00:41:10]} {[%emt 00:00:18]} 28. bxc3 {[%clk 00:42:45]}
{[%emt 00:00:10]} Qxc3 {[%clk 00:41:06]} {[%emt 00:00:33]} 29. Rc1 {[%clk
00:42:38]} {[%emt 00:00:26]} Qe5 {[%clk 00:37:14]} {[%emt 00:04:26]} 30. c3
{[%clk 00:40:22]} {[%emt 00:02:48]} Nd5 {[%clk 00:36:22]} {[%emt 00:01:26]} 31.
Bd4 {[%clk 00:39:35]} {[%emt 00:01:16]} Qf4 {[%clk 00:36:41]} {[%emt 00:00:09]}
32. Re1 {[%clk 00:38:52]} {[%emt 00:01:12]} Re8 {[%clk 00:35:50]} {[%emt
00:01:20]} 33. c4 {[%clk 00:35:33]} {[%emt 00:03:53]} Nb4 {[%clk 00:30:07]}
{[%emt 00:06:13]} 34. Bc3 {[%clk 00:34:16]} {[%emt 00:01:49]} Nd3 {[%clk
00:28:57]} {[%emt 00:01:39]} 35. Re3 {[%clk 00:33:32]} {[%emt 00:01:00]} Ra8
{[%clk 00:24:54]} {[%emt 00:04:47]} 36. Qf1 {[%clk 00:25:46]} {[%emt 00:08:13]}
Ra2 {[%clk 00:21:19]} {[%emt 00:04:04]} 37. Be1 {[%clk 00:25:06]} {[%emt
00:01:14]} Ne5 {[%clk 00:20:45]} {[%emt 00:01:03]} 0-1

[Event "NJSK 2021 Jeugd B"]
[Site "Almelo, Netherlands"]
[Date "2021.08.06"]
[Round "6.7"]
[White "Zubair, Saad"]
[Black "Arnold, Lorin"]
[Result "1-0"]
[TimeControl "90min/40moves + 30min + 30sec/move"]
[WhiteElo "1645"]
[BlackElo "1651"]

1. d4 {[%clk 01:30:58]} {[%emt 00:00:02]} d5 {[%clk 01:30:44]} {[%emt
00:00:16]} 2. c4 {[%clk 01:31:24]} {[%emt 00:00:05]} e6 {[%clk 01:31:11]}
{[%emt 00:00:03]} 3. Nc3 {[%clk 01:31:46]} {[%emt 00:00:08]} f5 {[%clk
01:31:37]} {[%emt 00:00:04]} 4. Bf4 {[%clk 01:31:31]} {[%emt 00:00:45]} Nf6
{[%clk 01:31:59]} {[%emt 00:00:08]} 5. e3 {[%clk 01:31:51]} {[%emt 00:00:11]}
c6 {[%clk 01:32:14]} {[%emt 00:00:15]} 6. Bd3 {[%clk 01:31:59]} {[%emt
00:00:22]} Bd6 {[%clk 01:32:39]} {[%emt 00:00:05]} 7. Nge2 {[%clk 01:31:59]}
{[%emt 00:00:30]} O-O {[%clk 01:32:59]} {[%emt 00:00:10]} 8. c5 {[%clk
01:32:21]} {[%emt 00:00:08]} Bc7 {[%clk 01:33:24]} {[%emt 00:00:05]} 9. f3
{[%clk 01:32:40]} {[%emt 00:00:12]} Nbd7 {[%clk 01:32:10]} {[%emt 00:01:43]} 10.
Bxc7 {[%clk 01:31:06]} {[%emt 00:02:04]} Qxc7 {[%clk 01:31:49]} {[%emt
00:00:51]} 11. f4 {[%clk 01:30:08]} {[%emt 00:01:28]} Ne4 {[%clk 01:31:57]}
{[%emt 00:00:21]} 12. Bxe4 {[%clk 01:28:49]} {[%emt 00:01:49]} fxe4 {[%clk
01:32:26]} {[%emt 00:00:02]} 13. Qd2 {[%clk 01:28:23]} {[%emt 00:00:57]} Nf6
{[%clk 01:32:50]} {[%emt 00:00:05]} 14. h3 {[%clk 01:28:38]} {[%emt 00:00:16]}
b6 {[%clk 01:32:50]} {[%emt 00:00:30]} 15. cxb6 {[%clk 01:28:10]} {[%emt
00:00:58]} axb6 {[%clk 01:33:05]} {[%emt 00:00:15]} 16. O-O {[%clk 01:27:19]}
{[%emt 00:01:20]} Ba6 {[%clk 01:32:16]} {[%emt 00:01:20]} 17. Rf2 {[%clk
01:27:07]} {[%emt 00:00:42]} c5 {[%clk 01:31:45]} {[%emt 00:01:01]} 18. Kh1
{[%clk 01:26:55]} {[%emt 00:00:42]} Rfe8 {[%emt 00:03:16]} 19. Rg1 {[%clk
01:26:51]} Bxe2 {[%clk 01:28:42]} {[%emt 00:01:21]} 20. Qxe2 {[%clk 01:27:06]}
{[%emt 00:00:14]} cxd4 {[%clk 01:26:47]} {[%emt 00:02:25]} 21. exd4 {[%clk
01:26:22]} {[%emt 00:01:15]} Qf7 {[%clk 01:26:31]} {[%emt 00:00:45]} 22. g4
{[%clk 01:26:22]} {[%emt 00:00:30]} h5 {[%clk 01:26:23]} {[%emt 00:00:38]} 23.
g5 {[%clk 01:25:31]} {[%emt 00:01:22]} Nd7 {[%clk 01:25:13]} {[%emt 00:01:39]}
24. g6 {[%clk 01:25:26]} {[%emt 00:00:35]} Qf5 {[%clk 01:25:18]} {[%emt
00:00:24]} 25. Kh2 {[%clk 01:24:49]} {[%emt 00:01:08]} h4 {[%clk 01:23:31]}
{[%emt 00:02:16]} 26. Nb5 {[%clk 01:24:47]} {[%emt 00:00:33]} Red8 {[%clk
01:23:45]} {[%emt 00:00:17]} 27. Rg5 {[%clk 01:24:46]} {[%emt 00:00:30]} Qf6
{[%clk 01:24:01]} {[%emt 00:00:13]} 28. Nc3 {[%clk 01:23:00]} {[%emt 00:02:17]}
Qxd4 {[%clk 01:23:59]} {[%emt 00:00:32]} 29. Rh5 {[%clk 01:19:50]} {[%emt
00:03:40]} Qf6 {[%clk 01:20:47]} {[%emt 00:03:41]} 30. f5 {[%clk 01:19:16]}
{[%emt 00:01:04]} exf5 {[%clk 01:17:50]} {[%emt 00:03:27]} 31. Nxd5 {[%clk
01:13:03]} {[%emt 00:06:43]} Qe5+ {[%clk 01:18:01]} {[%emt 00:00:19]} 32. Kh1
{[%clk 00:58:37]} {[%emt 00:14:53]} Qxd5 {[%clk 01:18:04]} {[%emt 00:00:30]} 33.
Rfxf5 {[%clk 00:58:48]} {[%emt 00:00:19]} Qd4 {[%clk 01:18:22]} {[%emt
00:00:12]} 34. Rh8+ {[%clk 00:59:02]} {[%emt 00:00:16]} Kxh8 {[%clk 01:18:41]}
{[%emt 00:00:12]} 35. Qh5+ {[%clk 00:59:30]} {[%emt 00:00:02]} Kg8 {[%clk
01:19:11]} 36. Qh7# {[%clk 00:59:26]} {[%emt 00:00:04]} 1-0